bitfinex-derivatives/quotes_BTCF0:USTF0_20250514
["timestamp","ask_amount","ask_price","bid_price","bid_amount"]
[1747230159431,1.70527907,104160.0,104150.0,0.25992175]
[1747230159619,1.88815474,104160.0,104150.0,0.25992175]
[1747230159929,1.88815474,104160.0,104150.0,0.16392022]
[1747230160134,1.88815474,104160.0,104150.0,0.00192022]
[1747230160923,1.98416674,104160.0,104150.0,2e-08]
[1747230161122,2.14616674,104160.0,104150.0,2e-08]
[1747230161922,1.47477107,104160.0,104150.0,2e-08]
[1747230162123,1.80133107,104160.0,104150.0,2e-08]
[1747230162721,1.98420674,104160.0,104150.0,2e-08]
[1747230162931,1.99837952,104160.0,104150.0,2e-08]
[1747230163134,1.39293185,104160.0,104150.0,2e-08]
[1747230163340,1.6844434,104160.0,104150.0,0.09601077]
[1747230163520,1.37875907,104160.0,104150.0,0.09601077]
[1747230163722,1.86731907,104160.0,104150.0,0.09601077]
[1747230164227,1.70531907,104160.0,104150.0,0.09601077]
[1747230165228,1.70531907,104160.0,104150.0,0.13851077]
[1747230165829,1.88819474,104160.0,104150.0,2e-08]
[1747230166233,2.05019474,104160.0,104150.0,2e-08]
[1747230166733,1.86731907,104160.0,104150.0,2e-08]
[1747230167231,0.6838834,104160.0,104150.0,0.28801267]
[1747230167438,0.6838834,104160.0,104150.0,0.55988834]
[1747230167620,1.1317834,104160.0,104150.0,0.55988834]
[1747230167821,1.36465907,104160.0,104150.0,1.68501077]
[1747230168233,1.36465907,104160.0,104150.0,1.84701077]
[1747230168439,1.65465907,104160.0,104150.0,1.84701077]
[1747230169441,1.65465907,104160.0,104150.0,1.75100002]
[1747230169819,1.4717834,104160.0,104150.0,1.75100002]
[1747230170025,1.65465907,104160.0,104150.0,1.75100002]
[1747230170237,1.65465907,104160.0,104150.0,1.58900002]
[1747230170429,1.83753474,104160.0,104150.0,2e-08]
[1747230170623,2.00614425,104160.0,104110.0,5e-08]
[1747230170829,0.73571437,104130.0,104120.0,0.044]
[1747230171032,0.1920572,104120.0,104110.0,0.04100005]
[1747230171232,0.92493287,104120.0,104110.0,0.08500005]
[1747230171629,0.92493287,104120.0,104110.0,1.6810108]
[1747230172022,0.92493287,104120.0,104110.0,1.6820108]
[1747230172428,0.92493287,104120.0,104110.0,1.8740864]
[1747230172627,0.92493287,104120.0,104110.0,1.6820108]
[1747230172826,0.92493287,104120.0,104110.0,1.6840108]
[1747230173035,0.92493287,104120.0,104110.0,1.8770864]
[1747230173230,0.92493287,104120.0,104110.0,1.6850108]
[1747230173638,0.92493287,104120.0,104110.0,1.8770864]
[1747230173833,0.92493287,104120.0,104110.0,1.6850108]
[1747230175332,1.18493287,104120.0,104110.0,1.6850108]
[1747230175729,1.1304172,104120.0,104110.0,1.9170864]
[1747230175938,1.1304172,104120.0,104110.0,1.8770864]
[1747230176140,0.5528572,104120.0,104110.0,2.05996207]
[1747230176331,0.3608,104120.0,104110.0,2.05996207]
[1747230176533,0.1920572,104120.0,104110.0,2.24400997]
[1747230177159,0.1920572,104120.0,104110.0,2.40600997]
[1747230177729,0.6488762,104130.0,104120.0,0.1920572]
[1747230177941,0.7763962,104130.0,104120.0,0.86213287]
[1747230178139,0.7763962,104130.0,104120.0,1.06603287]
[1747230178442,1.1852182,104140.0,104130.0,0.1920387]
[1747230178650,1.1852182,104140.0,104130.0,0.2800387]
[1747230178840,0.8444182,104140.0,104130.0,1.7800387]
[1747230179152,1.2932782,104140.0,104130.0,1.87607711]
[1747230179643,1.2962782,104140.0,104130.0,1.87607711]
[1747230179844,0.3549494,104140.0,104130.0,1.87607711]
[1747230180040,0.8432694,104140.0,104130.0,1.87607711]
[1747230180235,0.8432694,104140.0,104130.0,2.03807711]
[1747230180447,1.68694507,104140.0,104130.0,1.84603841]
[1747230180638,1.5460694,104140.0,104130.0,2.03807711]
[1747230180840,0.5997358,104140.0,104130.0,2.07807711]
[1747230181047,0.24712,104140.0,104130.0,2.62175278]
[1747230181339,0.4391403,104140.0,104130.0,2.62175278]
[1747230181652,0.4391403,104140.0,104130.0,2.43887711]
[1747230182149,0.4381403,104140.0,104130.0,2.43887711]
[1747230182450,0.002,104160.0,104130.0,3.51145645]
[1747230182634,0.002,104160.0,104150.0,1.09647757]
[1747230182833,0.002,104160.0,104150.0,1.13647757]
[1747230183048,0.002,104160.0,104150.0,1.32471028]
[1747230183248,0.002,104160.0,104150.0,1.58273947]
[1747230184037,0.002,104160.0,104150.0,1.82127876]
[1747230184346,0.002,104160.0,104150.0,3.32127876]
[1747230184542,0.002,104160.0,104150.0,3.33578473]
[1747230184740,0.1969834,104160.0,104150.0,3.33578473]
[1747230184940,0.005,104160.0,104150.0,3.33678473]
[1747230185643,0.1939834,104160.0,104150.0,3.33778473]
[1747230185844,0.002,104160.0,104150.0,3.33778473]
[1747230186039,0.28338779,104180.0,104170.0,0.191965]
[1747230186242,0.23710049,104180.0,104170.0,0.77564067]
[1747230186551,0.19338829,104180.0,104170.0,0.86144067]
[1747230186738,0.19338829,104180.0,104170.0,0.95743299]
[1747230187146,0.19338829,104180.0,104170.0,1.11943299]
[1747230188245,0.00444169,104180.0,104170.0,1.11943299]
[1747230188445,0.40470776,104200.0,104190.0,0.1919281]
[1747230188744,0.31134936,104200.0,104190.0,0.77560377]
[1747230188947,0.07512676,104200.0,104190.0,1.64713944]
[1747230189149,0.266563,104200.0,104190.0,3.22225609]
[1747230189455,0.636563,104200.0,104190.0,2.03362042]
[1747230189743,0.2686533,104200.0,104190.0,2.21649609]
[1747230189931,0.270563,104200.0,104190.0,2.21649609]
[1747230190133,0.19743624,104200.0,104190.0,2.21649609]
[1747230190336,0.24173624,104200.0,104190.0,2.21649609]
[1747230191246,0.28133624,104200.0,104190.0,2.21649609]
[1747230191746,0.82601191,104200.0,104190.0,2.03362042]
[1747230191946,0.72693624,104200.0,104190.0,2.03662042]
[1747230192160,0.72693624,104200.0,104190.0,1.87462042]
[1747230192346,0.72593624,104200.0,104190.0,1.87462042]
[1747230192542,0.72593624,104200.0,104190.0,1.87562042]
[1747230193649,0.72593624,104200.0,104190.0,1.64309232]
[1747230194052,0.72593624,104200.0,104190.0,1.83502042]
[1747230194354,0.72793624,104200.0,104190.0,1.87612042]
[1747230194953,0.97181624,104200.0,104190.0,1.59599232]
[1747230195147,0.97481624,104200.0,104190.0,1.59599232]
[1747230195548,1.20769191,104200.0,104190.0,0.09599232]
[1747230195749,0.1919281,104190.0,104180.0,0.0433]
[1747230196051,0.8684281,104190.0,104180.0,1.83122049]
[1747230196454,0.8684281,104190.0,104180.0,1.63927389]
[1747230196653,0.85937567,104190.0,104160.0,0.4045]
[1747230196855,0.552765,104170.0,104160.0,0.0974]
[1747230197160,0.1919834,104160.0,104150.0,0.00192022]
[1747230197355,1.70327907,104160.0,104150.0,0.00192022]
[1747230197543,1.70327907,104160.0,104150.0,0.09790332]
[1747230198452,1.70327907,104160.0,104150.0,0.10290332]
[1747230198655,1.5204034,104160.0,104150.0,0.10290332]
[1747230199055,1.5204034,104160.0,104150.0,0.10090332]
[1747230199252,1.0324834,104160.0,104150.0,0.10090332]
[1747230199455,1.1704434,104160.0,104150.0,0.22820332]
[1747230199645,1.72331907,104160.0,104150.0,0.10290332]
[1747230199845,1.72331907,104160.0,104150.0,0.00692022]
[1747230200946,1.72331907,104160.0,104150.0,2e-08]
[1747230200947,1.90619474,104160.0,104150.0,2e-08]
[1747230201142,2.31819474,104160.0,104150.0,2e-08]
[1747230201448,3.12694401,104160.0,104150.0,2e-08]
[1747230201846,3.14103704,104160.0,104150.0,2e-08]
[1747230202449,2.63613977,104160.0,104150.0,2e-08]
[1747230202651,2.9409441,104160.0,104150.0,2e-08]
[1747230203151,3.12381977,104160.0,104150.0,2e-08]
[1747230203354,2.87381977,104160.0,104150.0,2e-08]
[1747230203952,2.89067034,104160.0,104150.0,2e-08]
[1747230204457,2.89067034,104160.0,104130.0,1.5]
[1747230204657,0.1920572,104120.0,104110.0,0.08960005]
[1747230204856,0.63877287,104120.0,104110.0,0.10960005]
[1747230205059,1.06637287,104120.0,104110.0,0.04730005]
[1747230205264,1.39637287,104120.0,104110.0,5e-08]
[1747230206156,1.36631567,104120.0,104100.0,0.03390935]
[1747230206363,1.06363127,104110.0,104100.0,0.03390935]
[1747230206564,1.44363127,104110.0,104100.0,0.03390935]
[1747230208067,1.44363127,104110.0,104100.0,0.00570635]
[1747230208266,1.44363127,104110.0,104100.0,0.00870635]
[1747230209068,1.78850694,104110.0,104100.0,5e-08]
[1747230209265,1.60563127,104110.0,104100.0,5e-08]
[1747230209567,1.66323389,104110.0,104100.0,5e-08]
[1747230210071,1.50123389,104110.0,104100.0,5e-08]
[1747230210854,0.1920941,104100.0,104090.0,1e-08]
[1747230211067,1.42851239,104100.0,104090.0,1e-08]
[1747230212069,1.52458039,104100.0,104090.0,1e-08]
[1747230212269,1.52558039,104100.0,104090.0,1e-08]
[1747230212471,1.2851021,104100.0,104090.0,3e-08]
[1747230212664,1.42951239,104100.0,104090.0,3e-08]
[1747230212864,1.1890341,104100.0,104090.0,3e-08]
[1747230213060,1.44453,104100.0,104090.0,3e-08]
[1747230213266,1.60653,104100.0,104090.0,3e-08]
[1747230213470,0.1921679,104060.0,104050.0,0.36320239]
[1747230213665,0.7968479,104060.0,104050.0,0.09060239]
[1747230213866,0.7968479,104060.0,104050.0,1.68666848]
[1747230213867,0.8876479,104060.0,104050.0,1.68666848]
[1747230214266,0.8876479,104060.0,104050.0,1.84866848]
[1747230214771,0.9076479,104060.0,104050.0,1.84866848]
[1747230214966,0.9076479,104060.0,104050.0,1.85566848]
[1747230214967,0.9086479,104060.0,104050.0,1.85566848]
[1747230215672,0.9096479,104060.0,104050.0,1.86266848]
[1747230216156,0.9096479,104060.0,104050.0,0.36266848]
[1747230216360,1.15012619,104060.0,104050.0,0.22286103]
[1747230216568,0.6657679,104060.0,104050.0,0.22286103]
[1747230216774,1.1536479,104060.0,104050.0,1.85936405]
[1747230217370,0.7918479,104060.0,104050.0,2.04455045]
[1747230217568,0.002,104060.0,104050.0,2.68882874]
[1747230218060,0.194131,104080.0,104070.0,0.1921494]
[1747230218259,0.204131,104080.0,104070.0,0.24047829]
[1747230218462,0.494611,104080.0,104070.0,0.0443]
[1747230218666,0.654331,104080.0,104070.0,1.64040302]
[1747230218873,1.098211,104080.0,104070.0,0.0443]
[1747230219661,1.100211,104080.0,104070.0,0.0443]
[1747230220376,1.100211,104080.0,104050.0,0.29223423]
[1747230220377,0.1921679,104060.0,104050.0,0.00396103]
[1747230220674,0.1921864,104050.0,104040.0,0.52462179]
[1747230220975,0.1921864,104050.0,104040.0,2.05462179]
[1747230221174,0.1921864,104050.0,104040.0,2.26242179]
[1747230221371,0.1921864,104050.0,104040.0,2.35852481]
[1747230221578,0.6490679,104060.0,104050.0,0.1921864]
[1747230221774,0.6500679,104060.0,104050.0,0.52246469]
[1747230221963,0.6500679,104060.0,104050.0,0.48646469]
[1747230221964,0.64989747,104060.0,104050.0,0.48646469]
[1747230222184,0.64989747,104060.0,104050.0,0.74457694]
[1747230222367,0.69379747,104060.0,104050.0,0.74457694]
[1747230223370,0.2412228,104060.0,104050.0,0.74457694]
[1747230223579,0.2402228,104060.0,104050.0,1.18477694]
[1747230224277,0.001,104060.0,104050.0,1.18777694]
[1747230224475,0.1931679,104060.0,104050.0,1.18777694]
[1747230224675,0.1931679,104060.0,104050.0,0.94729865]
[1747230224977,0.1931679,104060.0,104050.0,1.18777694]
[1747230225365,0.001,104060.0,104050.0,1.53388094]
[1747230225572,0.001,104060.0,104050.0,1.54798323]
[1747230226374,0.001,104060.0,104050.0,3.04798323]
[1747230227278,0.001,104060.0,104050.0,2.79798323]
[1747230227577,0.001,104060.0,104050.0,3.04182323]
[1747230227773,0.1931679,104060.0,104050.0,2.79798323]
[1747230227966,0.1931679,104060.0,104050.0,2.94591923]
[1747230228573,0.1931679,104060.0,104050.0,2.70544094]
[1747230228780,0.001,104060.0,104050.0,2.94591923]
[1747230229166,0.1931679,104060.0,104050.0,2.94571923]
[1747230229479,0.5539679,104060.0,104050.0,2.34107923]
[1747230229688,0.6405679,104060.0,104050.0,2.34107923]
[1747230229978,0.2359679,104060.0,104050.0,2.34107923]
[1747230230173,0.001,104060.0,104050.0,2.70187923]
[1747230230475,0.001,104060.0,104050.0,2.94571923]
[1747230230684,0.3362778,104070.0,104060.0,0.1921679]
[1747230230876,0.240195,104070.0,104060.0,0.60144619]
[1747230231075,0.0428,104070.0,104060.0,0.76344619]
[1747230231277,0.6510169,104080.0,104070.0,0.1921494]
[1747230231470,0.194131,104080.0,104070.0,1.0473681]
[1747230231670,0.194131,104080.0,104070.0,0.86415875]
[1747230231870,0.002,104080.0,104070.0,1.14345265]
[1747230232078,0.002,104080.0,104070.0,2.44465265]
[1747230232267,0.194131,104080.0,104070.0,3.04925265]
[1747230232469,0.002,104080.0,104070.0,2.80545265]
[1747230232676,0.002,104080.0,104070.0,2.8660433]
[1747230233278,0.002,104080.0,104070.0,2.6222433]
[1747230233474,0.002,104080.0,104070.0,2.43903395]
[1747230233676,0.002,104080.0,104070.0,2.80545265]
[1747230233881,0.003,104080.0,104070.0,3.38913665]
[1747230235684,0.003,104080.0,104070.0,3.29305265]
[1747230236484,0.003,104080.0,104070.0,3.38913665]
[1747230236776,0.003,104080.0,104070.0,3.94693075]
[1747230236979,0.003,104080.0,104070.0,2.44693075]
[1747230237568,0.003,104080.0,104070.0,3.94693075]
[1747230237971,0.3608,104110.0,104070.0,3.70933075]
[1747230238169,0.6902983,104110.0,104100.0,0.1920941]
[1747230238371,0.1921125,104090.0,104080.0,0.4162731]
[1747230238576,0.3608,104090.0,104080.0,0.64461415]
[1747230238775,0.6489287,104110.0,104100.0,0.1920941]
[1747230238984,0.7343287,104110.0,104100.0,0.37530345]
[1747230239186,0.7393287,104110.0,104100.0,0.3540941]
[1747230239775,1.17253805,104110.0,104100.0,0.162]
[1747230239981,0.192131,104080.0,104070.0,0.79988519]
[1747230240171,1.60074035,104080.0,104070.0,0.38900522]
[1747230240373,1.42984035,104080.0,104070.0,0.19687062]
[1747230240573,1.246631,104080.0,104070.0,0.38902002]
[1747230240781,1.78884035,104080.0,104070.0,0.12967062]
[1747230241088,0.1921494,104070.0,104060.0,0.2426873]
[1747230241287,1.35991875,104070.0,104060.0,0.2426873]
[1747230241487,1.35991875,104070.0,104060.0,0.25716368]
[1747230241978,1.35991875,104070.0,104060.0,0.48933158]
[1747230241979,0.7967494,104070.0,104060.0,0.48933158]
[1747230242186,0.1921864,104050.0,104040.0,0.6306307]
[1747230242380,1.40699575,104050.0,104040.0,0.6306307]
[1747230242584,1.2237864,104050.0,104040.0,0.8228356]
[1747230242776,1.21699575,104050.0,104040.0,0.8228356]
[1747230243177,1.25779575,104050.0,104040.0,0.8228356]
[1747230243386,1.31526314,104050.0,104040.0,0.8228356]
[1747230244087,1.31626314,104050.0,104040.0,0.8278356]
[1747230244287,1.36256314,104050.0,104040.0,0.005]
[1747230245075,1.36356314,104050.0,104040.0,0.01]
[1747230245275,1.58356314,104050.0,104040.0,0.01]
[1747230245591,1.82740314,104050.0,104040.0,0.01]
[1747230245787,0.1922049,104040.0,104030.0,0.00336409]
[1747230246082,1.42444164,104040.0,104030.0,0.00336409]
[1747230246287,1.50004164,104040.0,104030.0,0.00336409]
[1747230246485,1.89463349,104040.0,104020.0,0.24390618]
[1747230246689,0.1922418,104020.0,104010.0,0.0009614]
[1747230246985,1.13371854,104020.0,104010.0,0.0009614]
[1747230247195,0.1922603,104010.0,104000.0,0.25709634]
[1747230247386,1.22073704,104010.0,104000.0,0.19199414]
[1747230247689,1.3612083,104010.0,104000.0,0.19199414]
[1747230247888,1.87760504,104010.0,104000.0,0.19199414]
[1747230248193,2.03960504,104010.0,104000.0,0.19199414]
[1747230248893,0.1922788,104000.0,103990.0,0.00192317]
[1747230249187,0.1922788,104000.0,103970.0,0.04316177]
[1747230249188,0.1923158,103980.0,103970.0,0.04316177]
[1747230249386,0.9139158,103980.0,103970.0,0.27639607]
[1747230249579,0.9614158,103980.0,103970.0,0.41854529]
[1747230249780,1.0037158,103980.0,103970.0,0.22621099]
[1747230249990,1.24439254,103980.0,103970.0,0.22621099]
[1747230250286,1.67056854,103980.0,103970.0,0.05758029]
[1747230250586,1.67056854,103980.0,103960.0,0.15345642]
[1747230250587,0.5531343,103970.0,103960.0,0.15345642]
[1747230250792,0.1923528,103960.0,103950.0,0.46799103]
[1747230251099,0.1923713,103950.0,103940.0,0.38964064]
[1747230251388,1.16384804,103950.0,103940.0,0.38964064]
[1747230251691,1.2693753,103950.0,103940.0,0.38964064]
[1747230251991,1.51005204,103950.0,103940.0,0.38964064]
[1747230252213,1.67205204,103950.0,103940.0,0.38964064]
[1747230252580,1.68633562,103950.0,103940.0,0.38964064]
[1747230252982,1.69133562,103950.0,103940.0,0.39064064]
[1747230253389,1.69233562,103950.0,103940.0,0.39064064]
[1747230253895,1.54715962,103950.0,103920.0,1.18358455]
[1747230254082,0.79388504,103930.0,103920.0,1.18358455]
[1747230254284,1.52568504,103930.0,103920.0,1.13601525]
[1747230254487,1.52568504,103930.0,103910.0,0.48897545]
[1747230254488,0.1924268,103920.0,103910.0,0.40526085]
[1747230254681,0.1924453,103910.0,103900.0,0.53675123]
[1747230254890,0.1924453,103910.0,103870.0,0.00192539]
[1747230254891,0.97957674,103910.0,103870.0,0.00192539]
[1747230255087,1.50068376,103880.0,103850.0,0.01104504]
[1747230255288,1.15481474,103860.0,103850.0,0.14975078]
[1747230255488,1.32481474,103860.0,103850.0,0.29257401]
[1747230255687,1.32481474,103860.0,103850.0,0.19635078]
[1747230255887,1.224138,103860.0,103850.0,0.19635078]
[1747230256085,1.482426,103860.0,103850.0,0.11409436]
[1747230256296,1.500526,103860.0,103850.0,0.11409436]
[1747230256486,2.295706,103860.0,103850.0,0.11409436]
[1747230256789,2.53638274,103860.0,103850.0,0.11509436]
[1747230256992,2.53938274,103860.0,103850.0,0.11509436]
[1747230257193,2.37738274,103860.0,103850.0,0.11509436]
[1747230257690,2.37738274,103860.0,103850.0,0.02709436]
[1747230258088,0.1925565,103850.0,103840.0,0.0424]
[1747230258283,0.192575,103840.0,103830.0,3e-08]
[1747230258489,1.52903648,103840.0,103830.0,3e-08]
[1747230258689,1.77903648,103840.0,103830.0,3e-08]
[1747230258891,0.1926678,103790.0,103780.0,0.40991506]
[1747230259086,1.2942678,103790.0,103780.0,0.64348148]
[1747230259291,0.8916,103790.0,103780.0,0.64348148]
[1747230259495,0.3608,103800.0,103790.0,0.1926678]
[1747230259688,0.3608,103800.0,103790.0,0.27492422]
[1747230259689,0.5534493,103800.0,103790.0,0.27492422]
[1747230260091,0.3608,103800.0,103790.0,0.27492422]
[1747230260389,0.55484505,103830.0,103800.0,0.0943188]
[1747230260595,0.55484065,103830.0,103820.0,0.27486852]
[1747230260899,0.55484065,103830.0,103820.0,0.08225642]
[1747230261390,0.56484065,103830.0,103820.0,0.17858161]
[1747230261701,0.56484065,103830.0,103820.0,0.27486852]
[1747230262089,0.78484065,103830.0,103820.0,0.34057233]
[1747230262396,0.78484065,103830.0,103820.0,0.24425642]
[1747230262901,0.59584065,103830.0,103820.0,0.43686852]
[1747230263100,0.01244705,103830.0,103820.0,1.07834526]
[1747230263401,0.002,103840.0,103830.0,0.1925936]
[1747230263700,0.555375,103840.0,103830.0,0.16365642]
[1747230263896,0.555375,103840.0,103820.0,0.46872619]
[1747230263897,0.1925936,103830.0,103820.0,0.46872619]
[1747230264097,0.91107034,103830.0,103820.0,0.13822969]
[1747230264301,1.23738634,103830.0,103820.0,0.13822969]
[1747230264499,1.27978634,103830.0,103820.0,0.13822969]
[1747230264802,1.27978634,103830.0,103790.0,0.00192688]
[1747230264803,0.1926493,103800.0,103790.0,0.00192688]
[1747230264990,1.16412604,103800.0,103790.0,0.00192688]
[1747230265189,1.0114493,103800.0,103790.0,0.16392688]
[1747230265388,0.5008,103800.0,103790.0,0.35659468]
[1747230265589,0.5534388,103810.0,103800.0,0.1926493]
[1747230265791,0.6497337,103820.0,103810.0,0.1926307]
[1747230265994,0.9442244,103820.0,103810.0,0.0472]
[1747230266186,0.3608,103830.0,103820.0,0.0962998]
[1747230266387,0.3608,103830.0,103810.0,0.88330429]
[1747230266596,0.649697,103830.0,103820.0,0.2387121]
[1747230267099,0.5533936,103830.0,103820.0,0.2823121]
[1747230267297,0.555375,103840.0,103830.0,0.1925936]
[1747230267496,0.555375,103840.0,103830.0,0.0461]
[1747230267693,0.555375,103840.0,103830.0,0.0897]
[1747230267894,0.565375,103840.0,103830.0,0.2822936]
[1747230268097,0.012,103840.0,103830.0,0.4842936]
[1747230268295,0.3608,103850.0,103840.0,0.192575]
[1747230268505,0.5533565,103850.0,103840.0,0.282275]
[1747230268704,0.5533565,103850.0,103840.0,0.37858164]
[1747230268902,0.2929,103850.0,103840.0,0.41858164]
[1747230269103,0.5733565,103850.0,103840.0,0.16281021]
[1747230269303,0.7733565,103850.0,103840.0,0.39107857]
[1747230269604,0.5808,103850.0,103840.0,0.39107857]
[1747230269902,0.8473565,103850.0,103840.0,0.39207857]
[1747230270103,0.8473565,103850.0,103840.0,0.19950357]
[1747230270303,1.21184548,103850.0,103840.0,0.19950357]
[1747230270512,1.26104548,103850.0,103840.0,0.2145584]
[1747230270801,1.26104548,103850.0,103840.0,0.4071334]
[1747230270802,0.4461,103850.0,103840.0,0.4071334]
[1747230271011,0.5933565,103850.0,103840.0,0.4071334]
[1747230271303,0.5633565,103850.0,103840.0,0.4071334]
[1747230271495,0.9386565,103850.0,103840.0,0.2145584]
[1747230271695,0.9386565,103850.0,103840.0,0.23518303]
[1747230272107,1.26784548,103850.0,103840.0,0.04260803]
[1747230272305,0.9918565,103850.0,103840.0,0.23518303]
[1747230272491,0.6633565,103850.0,103840.0,0.23518303]
[1747230272697,0.6633565,103850.0,103840.0,0.28018303]
[1747230273606,1.21254548,103850.0,103840.0,0.08760803]
[1747230273806,0.9806565,103850.0,103840.0,0.04260803]
[1747230274011,1.29984548,103850.0,103840.0,0.04260803]
[1747230274411,1.29984548,103850.0,103840.0,0.24080374]
[1747230274602,1.0006565,103850.0,103840.0,0.09322874]
[1747230274910,1.31984548,103850.0,103840.0,0.13662874]
[1747230275100,1.31984548,103850.0,103840.0,0.09162874]
[1747230275811,1.0006565,103850.0,103840.0,0.09162874]
[1747230276009,0.6506565,103850.0,103840.0,0.13392874]
[1747230276197,1.29984548,103850.0,103840.0,0.13392874]
[1747230276606,1.29984548,103850.0,103840.0,0.09162874]
[1747230276817,0.9806565,103850.0,103840.0,0.09162874]
[1747230277111,1.29984548,103850.0,103840.0,0.09162874]
[1747230277308,0.9806565,103850.0,103840.0,0.09162874]
[1747230277713,0.9806565,103850.0,103840.0,0.13392874]
[1747230278217,1.29984548,103850.0,103840.0,0.01108164]
[1747230278719,1.29984548,103850.0,103840.0,0.00562071]
[1747230278913,0.9806565,103850.0,103840.0,0.00562071]
[1747230279214,0.9806565,103850.0,103840.0,0.16762071]
[1747230279717,1.14644095,103850.0,103840.0,0.16762071]
[1747230279909,1.46562993,103850.0,103840.0,0.16762071]
[1747230280306,1.46562993,103850.0,103830.0,0.00192613]
[1747230280307,0.192575,103840.0,103830.0,0.00192613]
[1747230280605,1.30316398,103840.0,103830.0,0.00192613]
[1747230280809,1.64947198,103840.0,103830.0,3e-08]
[1747230281110,0.1926864,103780.0,103770.0,0.00096362]
[1747230281310,0.7734864,103780.0,103770.0,0.04176362]
[1747230281608,0.76866645,103780.0,103770.0,0.08596362]
[1747230281804,0.76866645,103780.0,103770.0,0.18227026]
[1747230282004,0.85516645,103780.0,103770.0,0.18227026]
[1747230282233,0.84793583,103780.0,103770.0,0.34427026]
[1747230283106,0.40063583,103780.0,103770.0,0.86616424]
[1747230283312,0.18063583,103780.0,103770.0,1.21696424]
[1747230283818,0.18063583,103780.0,103770.0,0.70507026]
[1747230284014,0.37063583,103780.0,103770.0,0.53697526]
[1747230284319,0.18163583,103780.0,103770.0,0.57797526]
[1747230284504,0.18163583,103780.0,103770.0,0.34527026]
[1747230284505,0.20163583,103780.0,103770.0,0.34527026]
[1747230284705,0.35988334,103780.0,103770.0,0.53797526]
[1747230284910,0.35988334,103780.0,103770.0,0.39147075]
[1747230285118,0.40148334,103780.0,103770.0,0.39147075]
[1747230285620,0.15924751,103780.0,103770.0,0.71065973]
[1747230285815,0.15924751,103780.0,103770.0,1.11145973]
[1747230286214,0.15924751,103780.0,103770.0,1.45782373]
[1747230286513,0.37561741,103780.0,103770.0,1.16782373]
[1747230287219,0.37861741,103780.0,103770.0,0.31476773]
[1747230287424,0.37961741,103780.0,103770.0,0.41013005]
[1747230288121,0.74941741,103780.0,103770.0,0.21256105]
[1747230288320,0.83861741,103780.0,103770.0,0.21256105]
[1747230288715,0.95975587,103780.0,103770.0,0.09636232]
[1747230288921,0.1927235,103760.0,103750.0,0.01206978]
[1747230289116,0.6035235,103760.0,103750.0,0.01206978]
[1747230289317,0.6927235,103760.0,103750.0,0.2704321]
[1747230289518,0.6927235,103760.0,103750.0,0.3183321]
[1747230289825,1.31191248,103760.0,103750.0,0.2704321]
[1747230290121,1.67371248,103760.0,103750.0,0.17706978]
[1747230290309,1.67371248,103760.0,103750.0,0.19132373]
[1747230290310,1.67471248,103760.0,103750.0,0.19132373]
[1747230290921,1.3555235,103760.0,103750.0,0.19132373]
[1747230292824,1.3555235,103760.0,103750.0,0.23672373]
[1747230293517,1.0655235,103760.0,103750.0,0.33310462]
[1747230293713,1.0655235,103760.0,103750.0,0.37640462]
[1747230293924,1.12692958,103760.0,103750.0,0.37640462]
[1747230294728,1.12692958,103760.0,103750.0,0.8883357]
[1747230294729,0.12340608,103760.0,103750.0,0.8883357]
[1747230294926,0.12340608,103760.0,103750.0,0.91988175]
[1747230295129,0.31612958,103760.0,103750.0,0.91988175]
[1747230295831,0.12340608,103760.0,103750.0,0.91988175]
[1747230296029,0.31612958,103760.0,103750.0,0.91988175]
[1747230296321,0.12340608,103760.0,103750.0,0.91988175]
[1747230296525,0.31612958,103760.0,103750.0,1.28068175]
[1747230296726,0.31612958,103760.0,103750.0,0.91988175]
[1747230297021,0.1947235,103760.0,103750.0,0.40795067]
[1747230297243,0.2844235,103760.0,103750.0,0.60069277]
[1747230297728,0.6852235,103760.0,103750.0,0.22246978]
[1747230297921,0.6852235,103760.0,103750.0,0.17706978]
[1747230299234,0.6852235,103760.0,103750.0,0.55589277]
[1747230299529,0.5555235,103760.0,103750.0,0.90508175]
[1747230299725,0.5555235,103760.0,103750.0,0.87508175]
[1747230300128,0.002,103760.0,103750.0,1.23588175]
[1747230300427,0.07258008,103770.0,103760.0,0.1927235]
[1747230300622,0.21816321,103770.0,103760.0,1.00561248]
[1747230300826,0.14210096,103780.0,103770.0,0.19832571]
[1747230301017,0.002,103800.0,103790.0,0.1926678]
[1747230301221,0.16578445,103810.0,103800.0,0.1926493]
[1747230301521,0.16578445,103810.0,103800.0,0.91263828]
[1747230301723,0.27886794,103820.0,103810.0,0.1926307]
[1747230301918,0.27886794,103820.0,103810.0,0.51181968]
[1747230302122,0.18946794,103820.0,103810.0,0.68793772]
[1747230302523,0.18946794,103820.0,103810.0,1.14507219]
[1747230303323,0.14140044,103820.0,103810.0,1.53139618]
[1747230303528,0.07266253,103830.0,103820.0,0.2889115]
[1747230303738,0.07266253,103830.0,103820.0,1.05705268]
[1747230304228,0.07266253,103830.0,103820.0,1.36236859]
[1747230304618,0.26525613,103830.0,103820.0,0.70611591]
[1747230304827,0.76835613,103830.0,103820.0,0.45092801]
[1747230305025,0.35755613,103830.0,103820.0,1.13091699]
[1747230305228,0.16796253,103830.0,103820.0,0.98530489]
[1747230305434,0.16796253,103830.0,103820.0,0.61911591]
[1747230305636,0.17796253,103830.0,103820.0,0.61911591]
[1747230305841,0.17796253,103830.0,103820.0,0.84198898]
[1747230306027,0.17796253,103830.0,103820.0,0.98590489]
[1747230306336,0.16796253,103830.0,103820.0,0.98590489]
[1747230306531,0.17296253,103830.0,103820.0,0.98590489]
[1747230306729,0.1003,103830.0,103820.0,0.98590489]
[1747230307536,0.008,103830.0,103820.0,0.98590489]
[1747230307731,0.008,103830.0,103820.0,1.02590489]
[1747230308326,0.1363,103830.0,103820.0,0.66671591]
[1747230308528,0.1363,103830.0,103820.0,0.61911591]
[1747230308731,0.4971,103830.0,103820.0,0.25831591]
[1747230308921,0.81628898,103830.0,103820.0,0.162]
[1747230309233,0.7771,103830.0,103820.0,0.25831591]
[1747230309737,0.4571,103830.0,103820.0,0.25831591]
[1747230309940,0.4671,103830.0,103820.0,0.25831591]
[1747230310141,0.4671,103830.0,103820.0,0.162]
[1747230310331,0.6371,103830.0,103820.0,0.162]
[1747230310533,0.6371,103830.0,103820.0,0.16237547]
[1747230311427,0.6371,103830.0,103820.0,0.25869138]
[1747230312737,0.4571,103830.0,103820.0,0.25869138]
[1747230313544,1.41511752,103830.0,103790.0,0.00754759]
[1747230313841,0.96330152,103800.0,103790.0,0.00754759]
[1747230314139,1.0916,103800.0,103790.0,0.16954759]
[1747230314343,1.33330152,103800.0,103790.0,0.16954759]
[1747230314539,1.0916,103800.0,103790.0,0.16954759]
[1747230314733,0.8416,103800.0,103790.0,0.17054759]
[1747230315242,0.8416,103800.0,103790.0,0.16954759]
[1747230315546,0.8416,103800.0,103790.0,0.17154759]